fUST/lending_fUST_20240630
["ID","MTS","AMOUNT","RATE_DAILY","PERIOD"]
[330715951,1719731324566,-676.54385279,0.00015027,2]
[330715952,1719731349297,-715.69835009,0.00015027,2]
[330715953,1719731349449,-715.69835009,0.00015027,2]
[330715954,1719731349489,-441.44274506,0.00015027,2]
[330715961,1719731374104,-753.155139,0.00015027,2]
[330715962,1719731374140,-156.73981778,0.00015027,2]
[330715963,1719731374179,-753.155139,0.00015027,2]
[330715965,1719731399027,-299.99999999,0.00015027,2]
[330716001,1719731433357,-1652.75005049,0.00015027,2]
[330716003,1719731433369,-5689.43195116,0.00015027,2]
[330716122,1719731438818,-11228.99776558,0.00015027,2]
[330716123,1719731438829,-291.4726412,0.0001512,2]
[330716125,1719731438839,-5286.34479944,0.00015945,2]
[330716128,1719731438849,-490.54850109,0.00015995,2]
[330716130,1719731438858,-150.0,0.00016003,2]
[330716132,1719731438868,-206.0005558,0.000161,2]
[330716133,1719731438877,-153.0,0.000161,2]
[330716136,1719731438887,-306.0,0.000161,2]
[330716138,1719731438897,-206.0005558,0.000161,2]
[330716140,1719731438909,-306.313378,0.000161,2]
[330716142,1719731438919,-153.0,0.000161,2]
[330716144,1719731438928,-206.0005558,0.000161,2]
[330716146,1719731438938,-308.3338013,0.000161,2]
[330716148,1719731438948,-206.0005558,0.000161,2]
[330716150,1719731438958,-153.0,0.000161,2]
[330716152,1719731438967,-411.9495874,0.000161,2]
[330716154,1719731438977,-153.0,0.00016164,2]
[330716156,1719731438986,-153.0,0.00016164,2]
[330716158,1719731438996,-206.0005558,0.000162,2]
[330716160,1719731439005,-306.0,0.000162,2]
[330716161,1719731439016,-25998.07952389,0.00016255,2]
[330716164,1719731439026,-338.465224,0.000163,2]
[330716165,1719731439037,-434.7713895,0.000163,2]
[330716168,1719731439047,-153.0,0.000163,2]
[330716170,1719731439058,-3046.96841656,0.00016338,2]
[330716171,1719731439069,-4482.62052316,0.00016338,2]
[330716173,1719731439081,-2000.0,0.00016338,2]
[330716175,1719731439092,-601.88019141,0.00016359,2]
[330716177,1719731439103,-39840.55763,0.000164,2]
[330716179,1719731439113,-773.0,0.00016425,2]
[330716181,1719731439128,-1262.0663077,0.00016436,2]
[330716183,1719731439138,-503.62112711,0.00016438,2]
[330716185,1719731439149,-500.0,0.00016438,2]
[330716187,1719731439159,-506.0555363,0.00016438,2]
[330716189,1719731439170,-500.0,0.00016438,2]
[330716191,1719731439180,-579.06,0.00016438,2]
[330716193,1719731439191,-508.39780189,0.00016438,2]
[330716195,1719731439201,-500.0,0.00016438,2]
[330716197,1719731439211,-613.6880139,0.00016438,2]
[330716199,1719731439221,-500.0,0.00016438,2]
[330716201,1719731439232,-508.39491225,0.00016438,2]
[330716203,1719731439242,-501.16079115,0.00016438,2]
[330716205,1719731439254,-500.0,0.00016438,2]
[330716207,1719731439264,-500.0,0.00016438,2]
[330716209,1719731439274,-500.0,0.00016438,2]
[330716211,1719731439285,-500.0,0.00016438,2]
[330716213,1719731439295,-24536.05,0.00016438,2]
[330716215,1719731439305,-500.0,0.00016438,2]
[330716217,1719731439316,-500.0,0.00016438,2]
[330716219,1719731439328,-500.0,0.00016438,2]
[330716221,1719731439339,-500.0,0.00016438,2]
[330716223,1719731439349,-508.89228459,0.00016438,2]
[330716225,1719731439359,-502.86841912,0.00016438,2]
[330716227,1719731439369,-500.0,0.00016438,2]
[330716229,1719731439380,-909.73,0.00016438,2]
[330716231,1719731439390,-538.00787098,0.00016438,2]
[330716233,1719731439400,-500.0,0.00016438,2]
[330716235,1719731439410,-610.56,0.00016438,2]
[330716237,1719731439421,-506.82,0.00016438,2]
[330716239,1719731439431,-500.0,0.00016438,2]
[330716241,1719731439441,-525.72491005,0.00016438,2]
[330716253,1719731439537,-501.08655905,0.00016438,2]
[330716255,1719731439567,-500.0,0.00016438,2]
[330716257,1719731439579,-500.0,0.00016438,2]
[330716259,1719731439590,-814.4,0.00016438,2]
[330716261,1719731439599,-501.97196758,0.00016438,2]
[330716263,1719731439610,-1656.37,0.00016438,2]
[330716265,1719731439620,-500.0,0.00016438,2]
[330716266,1719731439631,-500.0,0.00016438,2]
[330716267,1719731439640,-502.72826924,0.00016438,2]
[330716268,1719731439653,-500.0,0.00016438,2]
[330716269,1719731439664,-1068.11,0.00016438,2]
[330716270,1719731439674,-500.0,0.00016438,2]
[330716271,1719731439683,-505.59809707,0.00016438,2]
[330716272,1719731439694,-500.0,0.00016438,2]
[330716273,1719731439704,-500.0,0.00016438,2]
[330716274,1719731439715,-500.0,0.00016438,2]
[330716275,1719731439725,-500.0,0.00016438,2]
[330716276,1719731439736,-500.0,0.00016438,2]
[330716277,1719731439746,-500.0,0.00016438,2]
[330716278,1719731439757,-303.37565027,0.00016438,2]
[330716279,1719731439767,-580.6,0.00016438,2]
[330716280,1719731439777,-500.0,0.00016438,2]
[330716281,1719731439787,-521.84,0.00016438,2]
[330716282,1719731439797,-500.0,0.00016438,2]
[330716283,1719731439807,-500.0,0.00016438,2]
[330716284,1719731439817,-500.0,0.00016438,2]
[330716285,1719731439829,-500.0,0.00016438,2]
[330716286,1719731439839,-543.63,0.00016438,2]
[330716287,1719731439848,-500.0,0.00016438,2]
[330716288,1719731439859,-501.67703648,0.00016438,2]
[330716289,1719731439868,-500.0,0.00016438,2]
[330716290,1719731439878,-500.0,0.00016438,2]
[330716291,1719731439887,-500.0,0.00016438,2]
[330716292,1719731439898,-1380.11,0.00016438,2]
[330716293,1719731439908,-500.0,0.00016438,2]
[330716294,1719731439918,-500.0,0.00016438,2]
[330716295,1719731439928,-500.0,0.00016438,2]
[330716296,1719731439938,-508.94061713,0.00016438,2]
[330716297,1719731439948,-505.0003678,0.00016438,2]
[330716298,1719731439958,-500.0,0.00016438,2]
[330716299,1719731439968,-843.42,0.00016438,2]
[330716300,1719731439978,-500.0,0.00016438,2]
[330716301,1719731439987,-500.0,0.00016438,2]
[330716302,1719731439997,-500.0,0.00016438,2]
[330716303,1719731440007,-500.0,0.00016438,2]
[330716304,1719731440017,-500.0,0.00016438,2]
[330716305,1719731440027,-500.0,0.00016438,2]
[330716307,1719731440036,-500.0,0.00016438,2]
[330716308,1719731440046,-837.93,0.00016438,2]
[330716309,1719731440057,-107.34732783,0.00016438,2]
[330716518,1719731443956,-392.65267217,0.00016438,2]
[330716519,1719731443965,-338.67036204,0.00016438,2]
[330716522,1719731443975,-500.0,0.00016438,2]
[330716525,1719731443984,-500.0,0.00016438,2]
[330716528,1719731443993,-611.49,0.00016438,2]
[330716531,1719731444002,-500.0,0.00016438,2]
[330716532,1719731444011,-500.0,0.00016438,2]
[330716534,1719731444020,-540.73,0.00016438,2]
[330716536,1719731444030,-560.34,0.00016438,2]
[330716538,1719731444039,-500.0,0.00016438,2]
[330716540,1719731444048,-744.93,0.00016438,2]
[330716542,1719731444057,-500.0,0.00016438,2]
[330716544,1719731444067,-500.0,0.00016438,2]
[330716546,1719731444076,-1770.55,0.00016438,2]
[330716548,1719731444086,-500.0,0.00016438,2]
[330716549,1719731444095,-320.90698252,0.00016438,2]
[330716550,1719731444105,-852.39,0.00016438,2]
[330716551,1719731444114,-500.0,0.00016438,2]
[330716552,1719731444123,-500.0,0.00016438,2]
[330716553,1719731444132,-2733.48,0.00016438,2]
[330716554,1719731444142,-500.0,0.00016438,2]
[330716555,1719731444151,-500.0,0.00016438,2]
[330716556,1719731444161,-500.0,0.00016438,2]
[330716557,1719731444170,-500.0,0.00016438,2]
[330716558,1719731444179,-500.0,0.00016438,2]
[330716559,1719731444189,-500.0,0.00016438,2]
[330716560,1719731444198,-283.41994305,0.00016438,2]
[330716561,1719731444207,-500.0,0.00016438,2]
[330716562,1719731444216,-500.0,0.00016438,2]
[330716563,1719731444225,-500.0,0.00016438,2]
[330716564,1719731444235,-191.70059843,0.00016438,2]
[330716609,1719731621963,7478.29517923,0.00014998,2]
[330716618,1719732569280,317.3840151,0.00015007,2]
[330716755,1719732644032,9015.8532343,0.00015002,2]
[330716768,1719732647027,-300.0,0.00015192,2]
[330716769,1719732647039,-1458.4990442,0.00015193,2]
[330716771,1719732647049,-2653.2737915,0.00015214,2]
[330716772,1719732647058,-261.717032,0.00015214,2]
[330716773,1719732647067,-5286.34479944,0.00016191,2]
[330716774,1719732647076,-742.84086594,0.000163,2]
[330716775,1719732647086,-700.0,0.000163,2]
[330716776,1719732647095,-627.3586694,0.00016338,2]
[330716777,1719732647104,-2000.0,0.00016338,2]
[330716778,1719732647114,-500.0,0.00016438,2]
[330716779,1719732647124,-725.45,0.00016438,2]
[330716780,1719732647134,-4550.0200857,0.00016438,2]
[330716782,1719732735122,960.44716727,0.00014999,2]
[330716783,1719732753781,861.68453373,0.00014999,2]
[330717511,1719733871913,516.65,0.00024,60]
[330717513,1719733999350,1280.42494762,0.00014999,2]
[330717521,1719734050947,626.26187949,0.00015,2]
[330717534,1719734455120,2746.8202606,0.00014975,2]
[330717535,1719734505260,5286.34479944,0.00014772,2]
[330717536,1719734546145,150.0,0.00014521,2]
[330717537,1719734648770,261.7170322,0.00015,2]
[330717541,1719734840937,503.71914104,0.00014999,2]
[330717547,1719734994732,5286.34479944,0.00014586,2]
[330717551,1719735007279,-150.0,0.00015328,2]
[330717552,1719735007309,-507.52055374,0.000159,2]
[330717553,1719735007350,-183.41086397,0.000159,2]
[330717554,1719735007381,-300.0,0.00015999,2]
[330717555,1719735007410,-174.10968977,0.00015999,2]
[330717556,1719735007452,-86.89031023,0.00015999,2]
[330717557,1719735007482,-139.36148322,0.00016,5]
[330717639,1719735037895,-3182.89490971,0.00016,5]
[330717698,1719735046068,-646.43862942,0.00016,5]
[330721114,1719735508412,1000.0,0.00015,15]
[330721115,1719735530933,1000.0,0.00022,30]
[330721117,1719735543153,1000.0,0.00024,59]
[330722328,1719736049110,1000.0,0.00015,2]
[330722748,1719736154888,1748.52304575,0.00015,2]
[330722749,1719736160430,2831.7809937,0.00015,2]
[330722750,1719736229060,8080.67217566,0.00014998,2]
[330722767,1719736232200,-1330.227486,0.00015119,2]
[330722768,1719736232211,-10980.5415051,0.00015205,2]
[330722769,1719736232220,-604.56499047,0.00015616,2]
[330722771,1719736232230,-5286.34479944,0.00015621,2]
[330722773,1719736232239,-501.15363113,0.00015632,2]
[330722775,1719736232248,-796.76,0.00015632,2]
[330722777,1719736232258,-2038.83,0.00015866,2]
[330722779,1719736232267,-728.13,0.00015866,2]
[330722781,1719736232277,-15756.97,0.00015866,2]
[330722783,1719736232289,-7479.8,0.00015871,2]
[330722784,1719736232299,-500.0,0.00015871,2]
[330722785,1719736232308,-1946.25,0.00015871,2]
[330722787,1719736232318,-5162.13,0.00015871,2]
[330722789,1719736232328,-601.14,0.00015871,2]
[330722791,1719736232337,-573.40636028,0.00015871,2]
[330722793,1719736232346,-41184.46632073,0.00015871,2]
[330722970,1719736238241,-506.15870229,0.00015632,2]
[330722971,1719736238251,-500.0,0.00015632,2]
[330722972,1719736238261,-500.0,0.00015632,2]
[330722973,1719736238271,-1223.39,0.00015866,2]
[330722974,1719736238280,-1533.94126599,0.00015871,2]
[330722975,1719736238296,-12206.92615781,0.00015871,2]
[330722995,1719736240686,-3224.0,0.00015871,2]
[330722996,1719736240699,-25417.70603889,0.00015871,2]
[330722997,1719736240709,-4464.91367927,0.00015871,2]
[330722998,1719736240720,-3321.47076823,0.00015871,2]
[330722999,1719736240732,-419.84463997,0.00015871,2]
[330723000,1719736240751,-304.71368244,0.00015871,2]
[330723013,1719736243380,-1388.26090936,0.00015871,2]
[330723014,1719736243390,-538.69507364,0.00015871,2]
[330723015,1719736243402,-1206.4336295,0.00015871,2]
[330723016,1719736243591,-505.51884002,0.00015871,2]
[330723050,1719736246310,-500.0,0.00015632,2]
[330723052,1719736246319,-1759.26515726,0.00015871,2]
[330723053,1719736246331,-5488.97729958,0.00015871,2]
[330723054,1719736246342,-3815.59,0.00015871,2]
[330723056,1719736246352,-153.0,0.000159,2]
[330723058,1719736246362,-412.0011116,0.000159,2]
[330723060,1719736246372,-153.0,0.000159,2]
[330723062,1719736246382,-153.0,0.000159,2]
[330723064,1719736246392,-206.0005558,0.000159,2]
[330723065,1719736246402,-414.1952241,0.000159,2]
[330723066,1719736246411,-153.0,0.000159,2]
[330723067,1719736246421,-490.76095483,0.00015995,2]
[330723068,1719736246431,-8560.66248644,0.00015998,2]
[330723075,1719736358797,1011.77011992,0.00014999,2]
[330723076,1719736373906,526.68373998,0.00014999,2]
[330723077,1719736381071,155.14184401,0.00014999,2]
[330723078,1719736407084,154.93104536,0.00014999,2]
[330723079,1719736408800,821.56915674,0.00014999,2]
[330723080,1719736423662,200.61503685,0.00014999,2]
[330723081,1719736471375,10680.02295697,0.00014998,2]
[330723082,1719736492612,568.8688421,0.00014616,2]
[330723083,1719736505369,513.190918,0.00014652,2]
[330723101,1719736753552,1596.1911247,0.00014999,2]
[330723164,1719736945048,530.94633374,0.00014999,2]
[330723179,1719737031593,256.595459,0.00014555,2]
[330723180,1719737348354,154.86532058,0.00022,30]
[330723190,1719737406993,67642.11867949,0.00015,2]
[330723739,1719737439710,459.0,0.00025,120]
[330724037,1719737586948,256.5954591,0.00014582,2]
[330724147,1719738168712,5286.34479944,0.00014693,2]
[330724148,1719738204784,150.0,0.00014632,2]
[330724161,1719738405893,-1000.0,0.00016,16]
[330724166,1719738420470,-41090.60431924,0.00016,5]
[330724167,1719738434034,-150.0,0.00015083,2]
[330724168,1719738434168,-4342.46275611,0.000153,2]
[330724169,1719738434197,-178.03954293,0.0001533,2]
[330724170,1719738434221,-270.71355904,0.00015528,2]
[330724171,1719738434245,-270.71355902,0.00015529,2]
[330724172,1719738434268,-270.71355902,0.0001553,2]
[330724173,1719738434291,-2000.0,0.0001553,2]
[330724174,1719738434315,-270.71355902,0.00015531,2]
[330724175,1719738434338,-270.71355902,0.00015532,2]
[330724176,1719738434362,-300.0,0.00015625,2]
[330724177,1719738434384,-7168.14,0.00015626,2]
[330724178,1719738434408,-500.0,0.00015626,2]
[330724179,1719738434431,-1865.16,0.00015626,2]
[330724180,1719738434453,-4947.05,0.00015626,2]
[330724181,1719738434475,-576.1,0.00015626,2]
[330724182,1719738434499,-43747.32,0.00015626,2]
[330724183,1719738434521,-5207.86,0.00015626,2]
[330724184,1719738434544,-21191.28673134,0.00015627,2]
[330724185,1719738434567,-763.56,0.00015627,2]
[330724186,1719738434591,-500.0,0.00015627,2]
[330724187,1719738434612,-500.0,0.00015627,2]
[330724188,1719738434634,-500.0,0.00015627,2]
[330724189,1719738434656,-504.87921183,0.00015627,2]
[330724190,1719738434678,-632.59,0.00015627,2]
[330724191,1719738434699,-500.0,0.00015627,2]
[330724192,1719738434721,-503.84856482,0.00015627,2]
[330724193,1719738434742,-500.0,0.00015627,2]
[330724194,1719738434764,-500.0,0.00015627,2]
[330724195,1719738434786,-500.0,0.00015627,2]
[330724196,1719738434807,-500.0,0.00015627,2]
[330724197,1719738434829,-502.51886027,0.00015627,2]
[330724198,1719738434854,-500.0,0.00015627,2]
[330724199,1719738434875,-500.78,0.00015627,2]
[330724200,1719738434897,-500.0,0.00015627,2]
[330724201,1719738434919,-503.05908995,0.00015627,2]
[330724202,1719738434941,-500.0,0.00015627,2]
[330724203,1719738434966,-976.84,0.00015627,2]
[330724204,1719738434988,-3196.31,0.00015627,2]
[330724205,1719738435010,-524.30153872,0.00015627,2]
[330724206,1719738435031,-500.0,0.00015627,2]
[330724207,1719738435053,-503.13922847,0.00015627,2]
[330724208,1719738435075,-503.66349811,0.00015627,2]
[330724209,1719738435096,-501.71861451,0.00015627,2]
[330724210,1719738435123,-500.0,0.00015627,2]
[330724211,1719738435144,-961.87,0.00015627,2]
[330724212,1719738435167,-500.0,0.00015627,2]
[330724213,1719738435190,-502.76565142,0.00015627,2]
[330724214,1719738435214,-503.72213045,0.00015627,2]
[330724215,1719738435236,-500.0,0.00015627,2]
[330724216,1719738435258,-500.0,0.00015627,2]
[330724217,1719738435280,-778.99,0.00015627,2]
[330724218,1719738435303,-622.24,0.00015627,2]
[330724219,1719738435326,-500.0,0.00015627,2]
[330724220,1719738435347,-500.0,0.00015627,2]
[330724221,1719738435368,-500.0,0.00015627,2]
[330724222,1719738435390,-502.53388682,0.00015627,2]
[330724223,1719738435412,-853.57,0.00015627,2]
[330724224,1719738435434,-502.25486013,0.00015627,2]
[330724225,1719738435456,-410.26335676,0.00015627,2]
[330724226,1719738435480,-9103.1,0.00015627,2]
[330724227,1719738435501,-500.0,0.00015627,2]
[330724228,1719738435524,-613.64,0.00015627,2]
[330724229,1719738435545,-728.68,0.00015627,2]
[330724230,1719738435660,-500.0,0.00015627,2]
[330724231,1719738435683,-500.0,0.00015627,2]
[330724232,1719738435706,-500.0,0.00015627,2]
[330724233,1719738435728,-981.05437433,0.00015627,2]
[330724250,1719738555198,-661.01692435,0.00015048,2]
[330724251,1719738555356,-249.21063317,0.00015048,2]
[330724252,1719738555427,-661.01692435,0.00015048,2]
[330724253,1719738555492,-661.01692435,0.00015048,2]
[330724254,1719738580201,-705.66215248,0.00015048,2]
[330724255,1719738580257,-705.66215248,0.00015048,2]
[330724256,1719738580539,-357.96765184,0.00015048,2]
[330724262,1719738605160,-741.04799161,0.00015048,2]
[330724263,1719738605221,-741.04799161,0.00015048,2]
[330724264,1719738605276,-262.63199913,0.00015048,2]
[330724821,1719738638604,-2154.99871511,0.00015048,2]
[330724942,1719738644652,-2659.77048763,0.00015048,2]
[330724944,1719738644661,-528.99436667,0.00015526,2]
[330724946,1719738644670,-1624.60126472,0.00015626,2]
[330725718,1719738689409,-1000.0,0.00017,17]
[330725719,1719738693300,-300.0,0.00015625,2]
[330725720,1719738693324,-3656.61,0.00015626,2]
[330725721,1719738693348,-6869.47,0.00015626,2]
[330725722,1719738693371,-501.53968215,0.00015626,2]
[330725723,1719738693394,-501.82408422,0.00015626,2]
[330725724,1719738693416,-503.08253813,0.00015626,2]
[330725725,1719738693536,-504.21438087,0.00015626,2]
[330725726,1719738693560,-1567.52,0.00015626,2]
[330725727,1719738693583,-598.33,0.00015626,2]
[330725728,1719738693606,-500.0,0.00015626,2]
[330725729,1719738693632,-5776.77,0.00015626,2]
[330725730,1719738693655,-1787.44,0.00015626,2]
[330725731,1719738693677,-9100.92,0.00015626,2]
[330725732,1719738693700,-4740.92,0.00015626,2]
[330725733,1719738693721,-4657.42,0.00015626,2]
[330725734,1719738693743,-831.02,0.00015626,2]
[330725735,1719738693764,-552.09,0.00015626,2]
[330725736,1719738693786,-345.790365,0.00015626,2]
[330725737,1719738693808,-731.74,0.00015626,2]
[330725738,1719738693832,-3019.07,0.00015626,2]
[330725739,1719738693856,-500.0,0.00015626,2]
[330725740,1719738693880,-2454.22894963,0.00015626,2]
[330725741,1719738704941,-303.090462,0.000169,6]
[330725742,1719738706743,-39470.28105037,0.00015626,2]
[330725743,1719738706768,-606.23,0.00015626,2]
[330725744,1719738706793,-9923.48894963,0.00015626,2]
[330725745,1719738758688,-1000.0,0.00018,18]
[330725746,1719738772354,-160.0,0.00018948,5]
[330725747,1719738783805,-160.0,0.00018845,4]
[330725748,1719738811286,-300.0,0.00015624,2]
[330725749,1719738811313,-6583.24,0.00015625,2]
[330725750,1719738811336,-500.0,0.00015625,2]
[330725751,1719738811360,-1712.97,0.00015625,2]
[330725752,1719738811385,-2155.54105037,0.00015626,2]
[330725753,1719738811409,-4990.86,0.00015626,2]
[330725754,1719738811433,-8656.12,0.00015626,2]
[330725755,1719738811457,-500.0,0.00015626,2]
[330725756,1719738811482,-15100.43,0.00015626,2]
[330725757,1719738811507,-1365.66,0.00015626,2]
[330725758,1719738811628,-500.0,0.00015626,2]
[330725759,1719738811652,-500.0,0.00015626,2]
[330725760,1719738811678,-500.0,0.00015626,2]
[330725761,1719738811702,-746.53,0.00015626,2]
[330725762,1719738811726,-624.27,0.00015626,2]
[330725763,1719738811749,-3063.13,0.00015626,2]
[330725764,1719738811773,-3638.31,0.00015626,2]
[330725765,1719738811796,-1172.41,0.00015626,2]
[330725766,1719738811818,-891.73,0.00015626,2]
[330725767,1719738811841,-631.25,0.00015626,2]
[330725768,1719738811864,-921.79,0.00015626,2]
[330725769,1719738811889,-196.22059825,0.00015626,2]
[330725770,1719738811914,-500.0,0.00015626,2]
[330725771,1719738811937,-1895.02,0.00015626,2]
[330725772,1719738811960,-1600.18,0.00015626,2]
[330725773,1719738811985,-500.0,0.00015626,2]
[330725774,1719738812010,-3914.59,0.00015626,2]
[330725775,1719738812034,-645.68,0.00015626,2]
[330725776,1719738812055,-18335.36,0.00015626,2]
[330725777,1719738812077,-697.79,0.00015626,2]
[330725778,1719738812099,-1953.88,0.00015626,2]
[330725779,1719738812120,-6092.67,0.00015626,2]
[330725780,1719738812141,-5536.07,0.00015626,2]
[330725781,1719738812164,-3077.29835138,0.00015627,2]
[330725782,1719738825670,273.37336231,9.9e-05,2]
[330725783,1719738834131,273.37336231,9.9e-05,2]
[330725784,1719738842851,273.37336231,9.9e-05,2]
[330725785,1719738850903,273.37336231,9.9e-05,2]
[330725789,1719738859191,273.37336231,9.9e-05,2]
[330725790,1719738867676,273.37336231,9.9e-05,2]
[330725791,1719738875809,273.37336231,9.9e-05,2]
[330725792,1719738884622,273.37336231,9.9e-05,2]
[330725793,1719738893928,273.37336231,9.9e-05,2]
[330725794,1719738902505,273.37336231,9.9e-05,2]
[330725795,1719738908234,-4813.57,0.00015625,2]
[330725796,1719738908262,-566.09,0.00015625,2]
[330725797,1719738908285,-40177.66,0.00015625,2]
[330725798,1719738908310,-4782.91,0.00015625,2]
[330725799,1719738908336,-3698.68,0.00015626,2]
[330725800,1719738908361,-9002.11,0.00015626,2]
[330725801,1719738908384,-502.3572383,0.00015626,2]
[330725802,1719738908406,-500.0,0.00015626,2]
[330725803,1719738908428,-4616.97,0.00015626,2]
[330725804,1719738908451,-744.13,0.00015626,2]
[330725805,1719738908473,-890.87,0.00015626,2]
[330725806,1719738908494,-1155.81,0.00015626,2]
[330725807,1719738908518,-689.23,0.00015626,2]
[330725808,1719738908540,-500.0,0.00015626,2]
[330725809,1719738908561,-500.0,0.00015626,2]
[330725810,1719738908582,-500.0,0.00015626,2]
[330725811,1719738908606,-549.06776002,0.00015626,2]
[330725812,1719738908630,-813.36,0.00015626,2]
[330725813,1719738908653,-674.01,0.00015626,2]
[330725814,1719738908676,-3495.01,0.00015626,2]
[330725815,1719738908699,-14471.24,0.00015626,2]
[330725816,1719738908722,-12095.27,0.00015626,2]
[330725817,1719738908745,-11575.74,0.00015626,2]
[330725818,1719738908772,-28078.91500168,0.00015627,2]
[330725819,1719738911260,273.37336231,9.9e-05,2]
[330725820,1719738920149,273.37336231,9.9e-05,2]
[330725821,1719738924114,204.26,0.00010959,2]
[330725822,1719738928598,273.37336231,9.9e-05,2]
[330725823,1719738933148,525.18591678,0.00012,7]
[330725824,1719738934630,170.21,0.00010959,2]
[330725825,1719738937158,273.37336231,9.9e-05,2]
[330725826,1719738937452,7775.32730614,0.00015,2]
[330725827,1719738945155,851.09,0.00010959,2]
[330725828,1719738945895,273.37336231,9.9e-05,2]
[330725829,1719738954460,273.37336231,9.9e-05,2]
[330725830,1719738962629,273.37336231,9.9e-05,2]
[330725831,1719738971127,273.37336231,9.9e-05,2]
[330725832,1719738979476,273.37336231,9.9e-05,2]
[330725833,1719738987620,273.37336231,9.9e-05,2]
[330725834,1719738996030,273.37336231,9.9e-05,2]
[330725835,1719739004115,273.37336231,9.9e-05,2]
[330725836,1719739012347,273.37336231,9.9e-05,2]
[330725837,1719739020275,273.37336231,9.9e-05,2]
[330725838,1719739028418,273.37336231,9.9e-05,2]
[330725839,1719739036440,273.37336231,9.9e-05,2]
[330725840,1719739044716,273.37336231,9.9e-05,2]
[330725841,1719739052644,273.37336231,9.9e-05,2]
[330725842,1719739061524,273.37336231,9.9e-05,2]
[330725843,1719739070628,273.37336231,9.9e-05,2]
[330725844,1719739078954,273.37336231,9.9e-05,2]
[330725845,1719739086891,273.37336231,9.9e-05,2]
[330725846,1719739095160,273.37336231,9.9e-05,2]
[330725847,1719739103199,273.37336231,9.9e-05,2]
[330725848,1719739111362,273.37336231,9.9e-05,2]
[330725849,1719739119290,273.37336231,9.9e-05,2]
[330725850,1719739127636,273.37336231,9.9e-05,2]
[330725851,1719739136337,273.37336231,9.9e-05,2]
[330725852,1719739136975,250.57119884,0.00025,120]
[330725853,1719739145888,273.37336231,9.9e-05,2]
[330725854,1719739154444,273.37336231,9.9e-05,2]
[330725855,1719739156639,9642.0055182,0.00014559,2]
[330725856,1719739162709,273.37336231,9.9e-05,2]
[330725857,1719739171408,273.37336231,9.9e-05,2]
[330725858,1719739179729,273.37336231,9.9e-05,2]
[330725859,1719739187610,273.37336231,9.9e-05,2]
[330725860,1719739195826,273.37336231,9.9e-05,2]
[330725861,1719739204668,273.37336231,9.9e-05,2]
[330725862,1719739210969,22772.3252931,0.00014549,2]
[330725863,1719739213744,273.37336231,9.9e-05,2]
[330725864,1719739221439,273.37336231,9.9e-05,2]
[330725865,1719739230804,273.37336231,9.9e-05,2]
[330725866,1719739238783,273.37336231,9.9e-05,2]
[330725867,1719739246999,273.37336231,9.9e-05,2]
[330725868,1719739254869,273.37336231,9.9e-05,2]
[330725869,1719739262834,273.37336231,9.9e-05,2]
[330725870,1719739270750,273.37336231,9.9e-05,2]
[330725875,1719739278831,273.37336231,9.9e-05,2]
[330725876,1719739286702,273.37336231,9.9e-05,2]
[330725877,1719739295854,273.37336231,9.9e-05,2]
[330725878,1719739303797,273.37336231,9.9e-05,2]
[330725879,1719739311904,273.37336231,9.9e-05,2]
[330725880,1719739319787,273.37336231,9.9e-05,2]
[330725881,1719739327935,273.37336231,9.9e-05,2]
[330725882,1719739336000,273.37336231,9.9e-05,2]
[330725883,1719739344705,273.37336231,9.9e-05,2]
[330725884,1719739352706,273.37336231,9.9e-05,2]